Cogmind - Beta 10.2 @@@ ROGUE MODE // 2021.02.17 @ 15:19:21 Player: Cookie Result: Destroyed by D-53 Grenadier with Mini Grenade Launcher Performance ------------- Evolutions (0) 0 Regions Visited (4) 800 Robots Destroyed (12) 60 Value Destroyed (208) 208 Prototype IDs (3) 60 Alien Tech Used (0) 0 Bonus (360) 360 TOTAL SCORE: 1488 Bonus ------- Follower Combat Kills 60 Aligned with FarCom 300 Cogmind --------- Core Integrity 0/250 Matter 300/300 Energy 100/100 System Corruption 1% Temperature Cool (0) Movement Core (1350) Ox26 Location -9/Mines Parts ------- > --- POWER (1) -------- (None) > --- PROPULSION (2) --- (None) > --- UTILITY (2) ------ Humpback > --- WEAPON (2) ------- (None) > --- INVENTORY (24) --- Light Ion Engine Light Nuclear Core Wheel Humpback Small Laser Light Assault Rifle Grenade Launcher Field Lobotomy Kit Peak State ------------ > --- POWER ------------ Light Ion Engine > --- PROPULSION ------- Wheel Compact Wheel > --- UTILITY ---------- Small Storage Unit Medium Storage Unit > --- WEAPON ----------- Light Assault Rifle Field Lobotomy Kit > --- INVENTORY -------- Light Ion Engine Light Nuclear Core Wheel Flight Unit Flight Unit Flight Unit Medium Laser Small Laser Small Laser Grenade Launcher [Rating: 17] Favorites ----------- Power Light Ion Engine Engine Light Ion Engine Propulsion Compact Wheel Wheel Compact Wheel Utility Small Storage Unit Storage Small Storage Unit Weapon Light Assault Rifle Energy Gun Medium Laser Ballistic Gun Light Assault Rifle Special Weapon Field Lobotomy Kit Build | -11 -10 -10 -10 -9 ------- Run | Scr Mat Min Exi Min Slots Evolved . | . . . . . Power . | . . . . . Propulsion . | . . . . . Utility . | . . . . . Weapon . | . . . . . Parts Attached 20 | 7 1 5 3 4 Power 3 | 2 . 1 . . Engine 3 | 2 . 1 . . Core . | . . . . . Reactor . | . . . . . Propulsion 5 | 2 . 2 . 1 Treads . | . . . . . Leg . | . . . . . Wheel 5 | 2 . 2 . 1 Hover . | . . . . . Flight . | . . . . . Utility 4 | 1 1 . 1 1 Device . | . . . . . Storage 4 | 1 1 . 1 1 Processor . | . . . . . Hackware . | . . . . . Protection . | . . . . . Artifact . | . . . . . Weapon 8 | 2 . 2 2 2 Energy Gun 4 | 1 . 1 1 1 Energy Cannon . | . . . . . Ballistic Gun 2 | 1 . 1 . . Ballistic Cannon . | . . . . . Launcher . | . . . . . Special Weapon 2 | . . . 1 1 Impact Weapon . | . . . . . Slashing Weapon . | . . . . . Piercing Weapon . | . . . . . Special Melee Weapon . | . . . . . Unidentified Prototypes 1 | . . . 1 . Parts Lost 10 | . . 4 . 6 Power 2 | . . 1 . 1 Propulsion 5 | . . 2 . 3 Utility . | . . . . . Weapon 3 | . . 1 . 2 Highest Loss Streak 6 | . . 3 . 6 Average Slot Usage (%) 95 | . 97 97 98 83 Engine 13 | . 14 13 14 14 Wheel 27 | . 28 26 28 27 Storage 24 | . 25 28 26 14 Energy Gun 10 | . 14 3 13 20 Ballistic Gun 16 | . 14 23 14 5 Naked Turns . | . . . . . Heaviest Build 93 | 13 21 20 38 93 Greatest Support 26 | 26 26 26 26 26 Greatest Overweight (x) 26 | 3 . 1 1 26 Average Overweight (x) . | . . . . 3 Largest Inventory Capacity 24 | 6 10 10 16 24 Average Capacity 12 | 5 9 10 10 23 Most Carried 12 | 4 4 9 12 10 Average Carried 7 | 2 3 7 9 8 Final Capacity 24 | 6 10 10 12 24 Final Carried 12 | 3 4 9 12 9 Class Distribution -------------------- 82% | Mutant 17% | Hauler-Mutant Dominant Class ---------------- Mutant | -10/Materials Mutant | -10/Mines Mutant | -10/Exiles Hauler-Mutant | -9/Mines Resources | -11 -10 -10 -10 -9 ----------- Run | Scr Mat Min Exi Min Matter Collected 490 | 273 22 135 . 60 Remotely . | . . . . . Salvage Created 377 | 97 94 174 . 12 Parts 24 | 3 7 14 . . Haulers Intercepted . | . . . . . Recyclers Shooed 1 | . . 1 . . Parts Field Recycled . | . . . . . Retrieved Matter . | . . . . . Parts Self-Destructed . | . . . . . Prevented . | . . . . . Kills | -11 -10 -10 -10 -9 ------- Run | Scr Mat Min Exi Min Combat Hostiles Destroyed 9 | . 3 5 . 1 Guns 7 | . 1 5 . 1 AOE 2 | . 2 . . . Classes Destroyed 6 | 1 3 1 . 1 Builder 2 | . 1 1 . . Tunneler 1 | . . 1 . . Recycler 1 | 1 . . . . Swarmer 5 | . 2 3 . . Grunt 3 | . 1 2 . . Assembled 1 | . . . . 1 Best Kill Streak 3 | 1 3 3 . 1 Combat Bots Only 3 | . 2 3 . 1 Max Kills in Single Turn 3 | 1 3 1 . 1 Gunslinging . | . . . . . Exploded 2 | . 2 . . . Melee . | . . . . . Uniques/NPCs Destroyed . | . . . . . Combat | -11 -10 -10 -10 -9 -------- Run | Scr Mat Min Exi Min Damage Taken 1089 | . 86 438 . 565 Core 254 | . 12 109 . 133 Absorbed by Shields . | . . . . . Core Remaining (%) 100 | 100 . . . . Volleys Fired 38 | 1 4 26 . 7 Largest 2 | 2 2 2 . 2 Hottest 90 | 60 60 70 . 90 Shots Fired 73 | 2 8 51 . 12 Gun 71 | 2 8 51 . 10 Cannon . | . . . . . Launcher . | . . . . . Special 2 | . . . . 2 Kinetic 53 | 1 4 48 . . Thermal 11 | . . 1 . 10 Explosive . | . . . . . Electromagnetic 7 | 1 4 2 . . Robot Hit Streak 9 | 2 3 9 . 9 Robot Miss Streak 3 | . 3 2 . 3 Penetration Max . | . . . . . Secondary Targets 2 | . . 2 . . Max Gunslinging Chain 1 | . . 1 . . Shots Hit Robots 47 | 2 3 33 . 9 Core Hits 21 | 2 4 13 . 2 Critical Hits . | . . . . . Critical Kills . | . . . . . Critical Parts Destroyed . | . . . . . Melee Attacks . | . . . . . Impact . | . . . . . Slashing . | . . . . . Piercing . | . . . . . Sneak Attacks . | . . . . . Combat Hostiles . | . . . . . Follow-up Attacks . | . . . . . Damage Inflicted 617 | 26 136 361 . 94 Guns 515 | 26 50 361 . 78 Cannons . | . . . . . Explosions 86 | . 86 . . . Melee . | . . . . . Ramming 16 | . . . . 16 Kinetic 350 | 14 . 336 . . Thermal 177 | . 86 13 . 78 Explosive . | . . . . . Electromagnetic 74 | 12 50 12 . . Impact . | . . . . . Slashing . | . . . . . Piercing . | . . . . . Highest Corruption 1 | . . . . 1 Average Corruption 1 | . . . . 1 Corruption Purged . | . . . . . Overload Shots . | . . . . . Overflow Damage . | . . . . . Projectiles . | . . . . . Explosions . | . . . . . Melee . | . . . . . Knockbacks . | . . . . . Impact . | . . . . . Kinetic . | . . . . . Secondary . | . . . . . Self-Inflicted Damage 28 | . 20 . . 8 Shots 1 | . 1 . . . Rammed 1 | . . . . 1 Targets Rammed 1 | . . . . 1 Kicked . | . . . . . Crushed . | . . . . . Highest Temperature 140 | . 12 40 . 140 Average Temperature 39 | . 12 20 . 65 Received Heat Transfer 218 | . 24 162 . 32 Siege Activations . | . . . . . Robots Corrupted . | . . . . . Combat Hostiles . | . . . . . Parts Fried . | . . . . . Impact Corruptions . | . . . . . Robots Melted . | . . . . . Combat Hostiles . | . . . . . Parts Melted . | . . . . . Heat Transferred 348 | . 100 37 . 211 Parts Sabotaged . | . . . . . Parts Stolen . | . . . . . Parts Stripped . | . . . . . Power Chain Reactions 1 | . 1 . . . Missiles Intercepted . | . . . . . Alert | -11 -10 -10 -10 -9 ------- Run | Scr Mat Min Exi Min Peak Influence 171 | 5 107 171 . 21 Initial 41 | . 3 41 . . Average 63 | 2 61 96 . 2 Maximum Alert Level . | . . . . . Low Security (%) 100 | 100 100 100 . 100 Level 1 . | . . . . . Level 2 . | . . . . . Level 3 . | . . . . . Level 4 . | . . . . . Level 5 . | . . . . . High Security . | . . . . . Max Security . | . . . . . Squads Dispatched 1 | . 1 . . . Investigation . | . . . . . Extermination . | . . . . . Reinforcement 1 | . 1 . . . Assault . | . . . . . Garrison . | . . . . . Intercept . | . . . . . Construction Impeded . | . . . . . Haulers Reinforced . | . . . . . Stealth | -11 -10 -10 -10 -9 --------- Run | Scr Mat Min Exi Min Distress Signals 1 | . . . . 1 Communications Jammed . | . . . . . Distress Signals . | . . . . . Times Spotted 24 | . 8 6 . 10 Peak Tracking Total 4 | . 3 3 . 4 Tactical Retreats 3 | . 1 . . 2 Traps | -11 -10 -10 -10 -9 ------- Run | Scr Mat Min Exi Min Traps Triggered . | . . . . . Indirectly . | . . . . . Trap Hack Attempts . | . . . . . Triggered . | . . . . . Disarmed . | . . . . . Reprogrammed . | . . . . . Reused . | . . . . . Traps Extracted . | . . . . . Installed . | . . . . . Triggered . | . . . . . Machines | -11 -10 -10 -10 -9 ---------- Run | Scr Mat Min Exi Min Machines Disabled 2 | . . 2 . . Max in Single Turn 1 | . . 1 . . Machines Sabotaged . | . . . . . Garrisons Compromised . | . . . . . Overloaded Fab Kills . | . . . . . Fab Network Shutdowns . | . . . . . Hacking | -11 -10 -10 -10 -9 --------- Run | Scr Mat Min Exi Min Machines Accessed 5 | . 1 1 2 1 Terminals 3 | . 1 1 . 1 Fabricators . | . . . . . Repair Stations . | . . . . . Recycling Units . | . . . . . Scanalyzers . | . . . . . Garrison Access . | . . . . . Total Hacks 18 | . 4 2 10 2 Successful 16 | . 3 2 10 1 Failed 2 | . 1 . . 1 Catastrophic . | . . . . . Database Lockouts . | . . . . . Manual 6 | . 2 1 1 2 Terminals 8 | . 4 2 . 2 Fabricators . | . . . . . Repair Stations . | . . . . . Recycling Units . | . . . . . Scanalyzers . | . . . . . Garrison Access . | . . . . . Terminal Hacks 16 | . 3 2 10 1 Record 10 | . . . 10 . Part Schematic 1 | . 1 . . . Prototype ID Bank 1 | . 1 . . . Locate Traps 1 | . 1 . . . Dispatch Records 2 | . . 1 . 1 Investigation Status 1 | . . 1 . . Fabricator Hacks . | . . . . . Repair Station Hacks . | . . . . . Recycling Unit Hacks . | . . . . . Scanalyzer . | . . . . . Garrison Access Hacks . | . . . . . Unauthorized Hacks . | . . . . . Terminals . | . . . . . Fabricators . | . . . . . Repair Stations . | . . . . . Recycling Units . | . . . . . Scanalyzers . | . . . . . Garrison Access . | . . . . . Data Cores Recovered . | . . . . . Used . | . . . . . Hacking Detections 3 | . 1 1 . 1 Full Trace Events . | . . . . . Feedback Events . | . . . . . Feedback Blocked . | . . . . . Robot Schematics Acquired . | . . . . . Robots Built . | . . . . . Matter . | . . . . . Time . | . . . . . Total Robot Build Rating . | . . . . . Part Schematics Acquired 1 | . 1 . . . Parts Built . | . . . . . Matter . | . . . . . Time . | . . . . . Total Part Build Rating . | . . . . . Parts Repaired . | . . . . . Time . | . . . . . Parts Recycled . | . . . . . Recycled Matter . | . . . . . Retrieved Matter . | . . . . . Retrieved Components . | . . . . . Parts Scanalyzed . | . . . . . Part Schematics Acquired . | . . . . . Parts Damaged . | . . . . . Bothacking | -11 -10 -10 -10 -9 ------------ Run | Scr Mat Min Exi Min Used RIF Installer . | . . . . . Robots Hacked . | . . . . . Non-combat . | . . . . . Combat . | . . . . . Robot Hacks Applied . | . . . . . Relay Couplers Released . | . . . . . Robots Rewired . | . . . . . Allies Hacked . | . . . . . Hacks Repelled . | . . . . . Allies | -11 -10 -10 -10 -9 -------- Run | Scr Mat Min Exi Min Total Allies 5 | . . 3 . 2 Largest Group 3 | . . 3 . 2 Highest-Rated Group 40 | . . 40 . 26 Highest-Rated Ally 18 | . . 16 . 18 Total Orders . | . . . . . Ally Attacks 21 | . . 10 . 11 Total Damage 248 | . . 126 . 122 Kills 3 | . . 1 . 2 Allies Corrupted . | . . . . . Allies Melted . | . . . . . Field Lobotomies 2 | . . . . 2 Intel | -11 -10 -10 -10 -9 ------- Run | Scr Mat Min Exi Min Robot Analysis Total . | . . . . . Derelict Logs Recovered 3 | . . 3 . . Drone Launches . | . . . . . Drone Recoveries . | . . . . . Exploration | -11 -10 -10 -10 -9 ------------- Run | Scr Mat Min Exi Min Turns Passed 1625 | 58 192 628 472 275 Spaces Moved 1384 | 50 82 573 505 174 Core 19 | 18 . . . 1 Treads . | . . . . . Legs . | . . . . . Wheels 1365 | 32 82 573 505 173 Hover . | . . . . . Flight . | . . . . . Fastest Speed 50 | 50 90 90 90 120 Average Speed 95 | 80 90 90 91 127 Slowest Speed 1350 | 200 90 110 100 1350 Overloaded Moves . | . . . . . Propulsion Burnouts . | . . . . . Robots Hopped . | . . . . . Cave-ins Triggered . | . . . . . Exploration Rate (%) 49 | 4 15 98 92 36 Regions Visited 4 Branch Regions 3 Pre-discovered Areas 1 | . . 1 . . Known Exits Taken . | . . . . . Unknown Exits Taken 4 | 1 1 1 1 . Scrap Searched 2 | . . 2 . . Spaces Dug . | . . . . . Terrain Destroyed 6 | . 6 . . . Melee . | . . . . . Projectile . | . . . . . AOE 6 | . 6 . . . Terrain Rammed . | . . . . . Walls Destroyed . | . . . . . Machines Disabled . | . . . . . Actions | -11 -10 -10 -10 -9 --------- Run | Scr Mat Min Exi Min Total 1630 | 63 192 635 519 221 Wait 150 | . 104 21 . 25 Move 1380 | 49 81 572 504 174 Hop . | . . . . . Pick Up 32 | 6 2 10 6 8 Fast Attach 3 | 3 . . . . Attach 13 | 3 1 5 1 3 Detach 1 | . . . . 1 Swap 4 | 1 . . 2 1 Drop 8 | . . 1 6 1 Fire 38 | 1 4 26 . 7 Melee . | . . . . . Ram 1 | . . . . 1 Kick . | . . . . . Crush . | . . . . . Escape Stasis . | . . . . . Rewire . | . . . . . Trap . | . . . . . Miscellaneous . | . . . . . Route ------- -11/Scrapyard -10/Materials -10/Mines (discovered 3 exits: [*Mat x2] / *Exi) -10/Exiles (discovered 2 exits: *Min x2) -9/Mines History --------- Turn | Location | Event 8 | -11/Scrapyard | Discovered new exit (range 16) 59 | -11/Scrapyard | Entered Materials 207 | -10/Materials | Discovered new exit (range 9) 251 | -10/Materials | Entered Mines 251 | -10/Mines | Discovered new exit (range 10) 283 | -10/Mines | Met a Derelict bent on vengeance 288 | -10/Mines | Lost 3 parts (2n1w) 300 | -10/Mines | Build established: Mutant 455 | -10/Mines | Discovered new exit (range 15) 491 | -10/Mines | Learned location of 2 exits from Materials 505 | -10/Mines | Learned location of Storage (-9) 656 | -10/Mines | Found a hidden stash of uninstalled traps 674 | -10/Mines | Deemed a non-threat by the Exiles lab entrance 674 | -10/Mines | Discovered new exit (range 5) 748 | -10/Mines | Assisted by bots powering up and referring to "LRC-V3" 825 | -10/Mines | Learned Materials emergency access door positions 879 | -10/Mines | Entered Exiles 893 | -10/Exiles | Discovered new exit (range 15) 928 | -10/Exiles | Met 8R-AWN 943 | -10/Exiles | Met EX-HEX 975 | -10/Exiles | Met EX-BIN 995 | -10/Exiles | Aligned with FarCom system 996 | -10/Exiles | Given EX-Vault access code 1041 | -10/Exiles | Opened EX-Vault 1048 | -10/Exiles | Found Prototype Special Weapon 1049 | -10/Exiles | Identified Field Lobotomy Kit 1072 | -10/Exiles | Warned to stay clear of 0b10 Research branches 1096 | -10/Exiles | Met EX-DEC 1143 | -10/Exiles | Visited The Gauntlet 1341 | -10/Exiles | Discovered new exit (range 12) 1351 | -10/Exiles | Left Exiles lab with Field Lobotomy Kit 1351 | -10/Exiles | Entered Mines 1420 | -9/Mines | Assembled infested the area 1425 | -9/Mines | Assisted by a Guerilla fighting off Assembled 1471 | -9/Mines | Core integrity fell below 50% 1471 | -9/Mines | Assimilated G-34 Mercenary with FLK Orb 1478 | -9/Mines | Assimilated L-31 Rogue with FLK Orb 1623 | -9/Mines | Core integrity fell below 20% 1626 | -9/Mines | Destroyed by D-53 Grenadier with Mini Grenade Launcher Last Messages --------------- 01484_ R-06 Scavenger collects Aluminum Leg. 01487_ U-05 Engineer lays Concrete. 01488_ R-06 Scavenger collects Sml. Laser. 01571_ Acquired 40 matter. 01573_ Acquired 10 matter. 01590_ Knocked back. 01590_ as-39994 destroyed. 01593_ Destroyed Asb. F-torch. 01600_ Acquired Wheel. 01612_ Slammed into R-06 Scavenger. 01612_ Destabilizing: System corrupted (+1). 01612_ R-06 Scavenger sends out distress signal. 01613_ as-90084 destroyed. 01615_ Sml. Laser destroyed. 01618_ Med. Laser destroyed. 01618_ Wheel destroyed. 01619_ The unstable cave ceiling collapses. 01620_ Lgt. Ion Engine destroyed. 01620_ Com. Wheel destroyed. 01624_ The unstable cave ceiling collapses. Map ----- +----------------------------------------------------+ | ?????????????????????????????????????????????????? | | ?????????????????????????????????????????????????? | | ?????????????????????????????????????????????????? | | ?????????????????????????????????????????????????? | | ?????????????????????????????????????????????????? | | ?????????????????????????????????????????????????? | | #????????????????????????????????????????????????? | | #????????????????????????????????????????????????? | | ##???????????????????????????????????????????????? | | ##??????????????????????????????????????????????? | | ##?????????????????????????????????????????????? | | #?????????????????????????????????????????????? | | #?????????????????????????% ????????????????? | | ##???????????? #????????? * ????????????????? | | ###??????????? #####??? ????????????????? | | ##???????????k# # #### ???????????????? | | # #??????????? # #???????????????? | | ## #???????????? #????????????????? | | ?# #????????????#d #?????????????????? | | ?## ##??????????## ???????????????????? | | ### ##???????### #????????????????????? | | ######### # d # ##???????????????????? | | % ###?????????????????? | | % ############ #?????????????????? | | ##?????????# ###???????????????? | | ###??????????# @ #?????????? | | # %#???????????# ####???????????????? | | ### #???????????# #?????????????????? | | ### #???????????## #?????????????????? | | #????????????###$ ##?????????????????? | | ### #??????????????# ### ####??????????????????? | | ??# #??????????????# #??##?????????????????????? | | ### #??????????????# #?????????????????????????? | | #?????????????? #?????????????????????????? | | ######?????????????#####?????????????????????????? | | ?????????????????????????????????????????????????? | | ?????????sss?????????????????????????????????????? | | ?????????????????????????????????????????????????? | | ?????????????????????????????????????????????????? | | ###??????????????????????????????????????????????? | | ##?????????????????????????????????????????????? | | #?????????????????????????????????????????????? | | #????????????????????????????????????????????? | | #????????????????????????????????????????????? | | #????????????????????????????????????????????? | | ##????????????????????????????????????????????? | | ####?????????????????????????????????????????????? | | ?????????????????????????????????????????????????? | | ?????????????????????????????????????????????????? | | ?????????????????????????????????????????????????? | +----------------------------------------------------+ Best States ------------- Heat Dissipation 25 Energy Generation 10 Energy Capacity 250 Matter Stores 300 Matter Capacity 300 Sight Range 16 Terrain Scan Density 10 Evasion (%) 50 Item Schematics ----------------- Hover Unit | -10/Materials | Hacked Robot Schematics ------------------ None Fabricated ------------ Nothing Alien Tech Used ----------------- None Achievements -------------- None Challenges ------------ None Game ------ Seed GlidesysStasisBoomstick Manual? 0 Play Time 00:22:41 Cumulative 55.7 hours Start 2021.02.17 @ 14:58:15 End 2021.02.17 @ 15:19:21 Sessions 1 Manual Loads 0 Difficulty Rogue Special Mode None Game No. 89 Rogue 89 Adventurer 0 Explorer 0 Win Type - Total 1 Types 1/0/0/0/0/0/0/0/0 Lore% 40 Gallery% 37 Achievement% 36 Wizard Run 0 Options --------- ASCII 0 Keyboard 0 Movement Mouse Keybinds 0 Fullscreen 1 Font 18/SmallcapsGlow Map View 76x50 Tactical HUD 1 Map Filters NONE Filters NONE Steam 1 RUN: a66ea50c-d67f-4d35-9cff-6f1ace7828de